bitfinex-derivatives/quotes_ETHF0:USTF0_20251021
["timestamp","ask_amount","ask_price","bid_price","bid_amount"]
[1761033170930,41.26192,3896.1,3896.0,0.703]
[1761033171133,1.18888941,3896.1,3896.0,0.703]
[1761033172941,1.18888941,3896.1,3896.0,0.9226]
[1761033174640,1.12418941,3896.1,3896.0,0.9226]
[1761033175337,1.12418941,3896.1,3896.0,1.38454]
[1761033176534,1.12418941,3896.1,3896.0,0.9226]
[1761033176731,0.52662,3896.1,3896.0,0.9226]
[1761033178345,0.59132,3896.1,3896.0,0.9226]
[1761033178744,0.52662,3896.1,3896.0,0.9226]
[1761033180345,0.59132,3896.1,3896.0,0.9226]
[1761033181632,0.65602,3896.1,3896.0,0.4765]
[1761033181836,1.25326071,3896.1,3896.0,0.4765]
[1761033182252,1.18856071,3896.1,3896.0,0.6885]
[1761033183047,1.25326071,3896.1,3896.0,0.6885]
[1761033183643,1.18856071,3896.1,3896.0,0.6885]
[1761033184442,1.25326071,3896.1,3896.0,0.6885]
[1761033184751,1.18856071,3896.1,3896.0,0.6885]
[1761033185047,1.18856071,3896.1,3896.0,0.9174]
[1761033185238,1.12386071,3896.1,3896.0,0.9174]
[1761033186339,1.18856071,3896.1,3896.0,0.9174]
[1761033187550,0.59132,3896.1,3896.0,0.9174]
[1761033187756,1.18869753,3896.1,3896.0,0.9174]
[1761033187943,0.59132,3896.1,3896.0,0.9174]
[1761033188453,0.46192,3896.1,3896.0,0.9174]
[1761033192250,0.46192,3896.1,3896.0,1.37934]
[1761033193253,0.46192,3896.1,3896.0,0.9174]
[1761033194854,1.73407833,3896.5,3896.1,0.3205]
[1761033195051,0.59759177,3896.4,3896.3,1.2233]
[1761033195257,0.0647,3896.9,3896.8,0.7614]
[1761033195456,1.12407105,3896.9,3896.8,0.7614]
[1761033196054,1.25347105,3896.9,3896.8,0.3205]
[1761033198451,0.65596,3896.6,3896.5,0.13]
[1761033198752,0.52662,3896.1,3896.0,0.5718]
[1761033198957,1.9830399,3896.1,3896.0,0.9142]
[1761033201056,1.9183399,3896.1,3896.0,0.9142]
[1761033201358,1.3917199,3896.1,3896.0,1.37614]
[1761033201563,1.8536399,3896.1,3896.0,1.37614]
[1761033203259,1.3917199,3896.1,3896.0,1.37614]
[1761033203662,1.8536399,3896.1,3896.0,1.37614]
[1761033204953,1.9830399,3896.1,3896.0,0.9142]
[1761033205262,2.58015747,3896.1,3896.0,0.9142]
[1761033206561,1.9830399,3896.1,3896.0,0.9142]
[1761033207260,2.58026733,3896.1,3896.0,0.9142]
[1761033207448,1.9830399,3896.1,3896.0,0.9142]
[1761033207648,1.8536099,3896.4,3896.3,1.2344]
[1761033207852,1.05905027,3896.4,3896.3,1.2344]
[1761033208156,1.05905027,3896.4,3896.3,0.7725]
[1761033209254,0.59716027,3896.4,3896.3,1.2344]
[1761033210055,1.3917199,3896.5,3896.4,0.7725]
[1761033210258,1.98881276,3896.5,3896.4,0.7725]
[1761033210856,1.3917199,3896.5,3896.4,1.23439]
[1761033211060,1.3917199,3896.5,3896.4,0.7725]
[1761033212164,1.5209199,3896.5,3896.4,0.7725]
[1761033213466,2.11799798,3896.5,3896.4,0.7725]
[1761033216861,2.18259798,3896.5,3896.4,0.3203]
[1761033220074,0.66167808,3896.5,3896.4,0.7725]
[1761033220275,2.11799798,3896.5,3896.4,0.7725]
[1761033221169,0.72627808,3896.5,3896.4,0.7725]
[1761033221373,2.64447798,3896.5,3896.4,0.3203]
[1761033221572,2.11799798,3896.5,3896.4,0.5506]
[1761033221767,2.11799798,3896.5,3896.4,0.7725]
[1761033221966,2.57987798,3896.5,3896.4,0.7725]
[1761033223176,2.11799798,3896.5,3896.4,0.7725]
[1761033224571,2.57987798,3896.5,3896.4,0.7725]
[1761033224774,2.64447798,3896.5,3896.4,0.3203]
[1761033226874,2.64447798,3896.5,3896.4,0.5506]
[1761033226875,2.18259798,3896.5,3896.4,0.5506]
[1761033227282,2.64447798,3896.5,3896.4,0.5506]
[1761033229384,2.57987798,3896.5,3896.4,0.5506]
[1761033229576,2.11799798,3896.5,3896.4,0.5506]
[1761033230890,2.11799798,3896.5,3896.4,0.7725]
[1761033231483,2.11799798,3896.5,3896.4,0.5506]
[1761033237193,2.18259798,3896.5,3896.4,0.3203]
[1761033240498,2.11799798,3896.5,3896.4,0.5506]
[1761033241201,2.11799798,3896.5,3896.4,0.7785]
[1761033243596,2.11799798,3896.5,3896.4,1.24039]
[1761033243798,0.59707808,3896.5,3896.4,1.24039]
[1761033244302,0.66187808,3896.5,3896.4,1.24039]
[1761033245104,0.72667808,3896.5,3896.4,0.7785]
[1761033246203,0.72667808,3896.5,3896.4,1.24039]
[1761033246400,0.72667808,3896.5,3896.4,0.7785]
[1761033247804,0.72667808,3896.5,3896.4,1.24039]
[1761033248404,0.66187808,3896.5,3896.4,1.24039]
[1761033248604,0.66187808,3896.5,3896.4,0.7785]
[1761033248805,0.66187808,3896.5,3896.4,1.24039]
[1761033250907,0.66187808,3896.5,3896.4,0.7785]
[1761033251300,0.59707808,3896.5,3896.4,0.7785]
[1761033251704,0.66187808,3896.5,3896.4,0.7785]
[1761033253507,0.79147808,3896.5,3896.4,0.3203]
[1761033254307,0.79147808,3896.5,3896.4,0.543]
[1761033256910,0.72667808,3896.5,3896.4,1.00489]
[1761033257605,0.59707808,3896.5,3896.4,1.22829]
[1761033258201,0.59707808,3896.5,3896.4,0.7664]
[1761033258202,0.72607808,3896.5,3896.4,0.7664]
[1761033258704,2.39611002,3896.5,3896.4,0.7664]
[1761033258900,2.46061002,3896.5,3896.4,0.543]
[1761033262710,2.92249002,3896.5,3896.4,0.3203]
[1761033264614,0.65542,3896.1,3896.0,0.1338]
[1761033264913,0.65542,3896.1,3895.7,0.2293]
[1761033264914,0.59096,3895.8,3895.7,0.2293]
[1761033265116,1.25253808,3895.8,3895.7,0.5511]
[1761033265307,0.79057808,3895.8,3895.7,0.5511]
[1761033265714,0.72607808,3895.8,3895.7,1.23647]
[1761033265912,0.59707808,3895.8,3895.7,1.23647]
[1761033266212,1.73453194,3896.1,3896.0,0.9006]
[1761033266412,2.3920051,3896.1,3896.0,0.9006]
[1761033268006,2.8539251,3896.1,3896.0,0.9006]
[1761033270413,1.24929316,3896.1,3896.0,0.6713]
[1761033270709,1.24929316,3896.1,3895.5,0.1338]
[1761033270710,0.1296,3895.7,3895.6,0.5424]
[1761033271013,2.3926051,3895.7,3895.6,0.5424]
[1761033271207,2.8545751,3895.7,3895.6,0.5424]
[1761033271810,2.3926051,3895.7,3895.6,0.5424]
[1761033272010,1.79963194,3895.7,3895.6,0.5424]
[1761033272412,1.79963194,3895.7,3895.6,0.753]
[1761033273213,1.79963194,3895.7,3895.6,1.21498]
[1761033273413,1.73483194,3895.7,3895.6,0.753]
[1761033275920,1.67003194,3895.7,3895.6,1.21498]
[1761033277019,9.1168,3896.5,3896.4,0.753]
[1761033277223,10.1708963,3896.5,3896.4,0.753]
[1761033277416,1.1836963,3896.5,3896.4,0.753]
[1761033280718,1.2484963,3896.5,3896.4,0.3126]
[1761033281320,0.4619,3896.3,3896.0,0.82684]
[1761033281524,0.7218163,3896.5,3896.0,0.82684]
[1761033281525,1.2485263,3896.2,3896.1,0.3126]
[1761033282218,1.1189263,3896.2,3896.1,0.753]
[1761033282821,2.78895824,3896.2,3896.1,0.753]
[1761033283021,2.85375824,3896.2,3896.1,0.753]
[1761033283417,2.91855824,3896.2,3896.1,0.3126]
[1761033286816,0.65635,3895.9,3895.8,0.3126]
[1761033287021,1.1837663,3895.9,3895.8,0.5424]
[1761033289723,1.18421706,3895.9,3895.8,0.5424]
[1761033293724,0.59266706,3895.9,3895.8,0.753]
[1761033294226,1.05461706,3895.9,3895.8,0.753]
[1761033294530,1.11941706,3895.9,3895.8,0.753]
[1761033294931,1.18421706,3895.9,3895.8,0.753]
[1761033295428,1.24901706,3895.9,3895.8,0.3126]
[1761033298325,1.24901706,3895.9,3894.9,1.37337019]
[1761033298326,0.59125,3895.0,3894.9,1.37337019]
[1761033298538,0.1292,3894.9,3894.8,0.4293]
[1761033298738,2.85647331,3894.9,3894.8,0.7716]
[1761033299531,2.85647331,3894.9,3894.8,0.77360418]
[1761033300731,2.26520331,3894.9,3894.8,0.77360418]
[1761033301336,1.67003194,3894.9,3894.8,0.77360418]
[1761033301529,2.13209194,3895.0,3894.8,0.77360418]
[1761033301830,2.13209194,3895.0,3894.9,0.3423]
[1761033301831,0.46206,3895.0,3894.9,0.3423]
[1761033302033,1.06286593,3895.0,3894.9,0.7716]
[1761033302234,0.60080593,3895.0,3894.9,1.23367]
[1761033302532,2.19661194,3895.6,3895.5,0.9043]
[1761033302735,2.7972321,3895.6,3895.5,0.9043]
[1761033303839,2.8618321,3895.6,3895.5,0.9043]
[1761033307241,2.9264321,3895.6,3895.5,0.6862]
[1761033309244,1.23944,3895.1,3895.0,0.3439]
[1761033309445,2.90947194,3895.1,3895.0,0.3439]
[1761033310540,2.13207194,3895.1,3895.0,0.562]
[1761033310748,1.67003194,3895.1,3895.0,0.562]
[1761033310938,2.13207194,3895.1,3895.0,0.562]
[1761033311139,2.13207194,3895.1,3895.0,0.9043]
[1761033311545,2.35567194,3895.1,3895.0,0.9043]
[1761033313445,1.89363194,3895.1,3895.0,0.9043]
[1761033313834,2.35567194,3895.1,3895.0,0.9043]
[1761033314145,1.89363194,3895.1,3895.0,0.9043]
[1761033314346,1.67003194,3895.1,3895.0,0.9043]
[1761033315547,1.67003194,3895.1,3895.0,1.36635]
[1761033318945,0.316,3895.8,3895.0,1.36635]
[1761033318946,1.67003194,3895.4,3895.0,1.36635]
[1761033319153,1.67003194,3895.4,3895.3,0.7674]
[1761033320848,1.3922004,3895.4,3895.3,1.22942]
[1761033321865,1.3922004,3895.4,3895.3,0.7674]
[1761033322364,1.6217004,3895.4,3895.3,0.7674]
[1761033323160,1.6217004,3895.4,3895.3,1.22942]
[1761033323353,1.6217004,3895.4,3895.3,0.7674]
[1761033323556,1.6217004,3895.4,3895.3,1.22942]
[1761033324059,2.6200104,3895.4,3895.3,0.3404]
[1761033324378,2.6200104,3895.4,3895.3,0.5559]
[1761033325664,0.91184,3895.2,3895.1,0.3404]
[1761033325867,0.4498,3895.2,3895.1,0.7674]
[1761033326260,0.7658,3895.2,3895.1,0.7674]
[1761033326668,1.22783,3895.2,3895.1,0.7674]
[1761033326968,0.91183,3895.2,3895.1,0.7674]
[1761033330070,1.25003,3895.2,3895.1,0.7674]
[1761033332273,0.91183,3895.2,3895.1,0.7674]
[1761033332570,1.25003,3895.2,3895.1,0.7674]
[1761033332870,1.85405953,3895.2,3895.1,0.7674]
[1761033333563,1.51585953,3895.2,3895.1,0.7674]
[1761033335066,1.85405953,3895.2,3895.1,0.7674]
[1761033337780,1.51585953,3895.2,3895.1,0.7674]
[1761033339061,1.25003,3895.2,3895.1,0.7674]
[1761033339475,0.91183,3895.2,3895.1,0.7674]
[1761033340264,0.69153,3895.2,3895.1,0.7674]
[1761033340468,0.2295,3895.2,3895.1,0.7674]
[1761033340667,2.2827804,3895.6,3895.5,0.8634]
[1761033340869,2.88685742,3895.6,3895.5,0.8634]
[1761033341466,3.22505742,3895.6,3895.5,0.8634]
[1761033343881,2.76307742,3895.6,3895.5,0.8634]
[1761033344073,3.22505742,3895.6,3895.5,0.6527]
[1761033344577,3.22505742,3895.6,3895.5,0.5261]
[1761033347582,3.22505742,3895.6,3895.5,0.8634]
[1761033350687,2.76307742,3895.6,3895.5,0.8634]
[1761033350885,3.22505742,3895.6,3895.5,0.8634]
[1761033352088,2.76307742,3895.6,3895.5,0.8634]
[1761033353587,3.22505742,3895.6,3895.5,0.8634]
[1761033359793,2.76307742,3895.6,3895.5,1.3254]
[1761033360095,2.42487742,3895.6,3895.5,1.3254]
[1761033360391,2.42479628,3895.6,3895.5,1.3254]
[1761033360595,2.42479464,3895.6,3895.5,1.3254]
[1761033360785,2.74719464,3895.6,3895.5,1.3254]
[1761033360989,3.20917464,3895.6,3895.5,1.3254]
[1761033361298,3.20917464,3895.6,3895.5,0.8634]
[1761033361592,0.46201,3895.4,3895.2,0.67482]
[1761033361789,0.4343,3895.4,3895.3,1.21932]
[1761033361989,2.2885104,3895.4,3895.3,1.21932]
[1761033362297,2.1489004,3895.4,3895.3,1.21932]
[1761033363600,1.8265004,3895.4,3895.3,1.21932]
[1761033365495,0.209,3895.4,3895.3,1.21932]
[1761033365698,1.6012004,3895.4,3895.3,1.21932]
[1761033366294,2.6109104,3895.4,3895.3,1.21932]
[1761033366493,2.1489004,3895.4,3895.3,1.21932]
[1761033367790,1.8265004,3895.4,3895.3,1.21932]
[1761033369295,2.6109104,3895.4,3895.3,0.7573]
[1761033369991,2.6109104,3895.4,3895.0,0.1327]
[1761033369992,1.21874,3895.1,3895.0,0.3322]
[1761033370193,2.6109404,3895.1,3895.0,0.545]
[1761033371096,2.6109404,3895.1,3895.0,0.6825]
[1761033371591,1.21875,3895.0,3894.9,1.37337019]
[1761033371784,1.33285,3895.0,3894.9,1.37337019]
[1761033372388,1.93728157,3895.0,3894.8,0.00200418]
[1761033372596,3.21540197,3894.9,3894.8,0.00200418]
[1761033378597,3.21540197,3894.9,3894.0,0.5439189]
[1761033378598,1.24486,3894.1,3894.0,0.5439189]
[1761033378800,2.6370604,3894.1,3894.0,0.5439189]
[1761033379003,2.6370604,3894.1,3894.0,0.3435]
[1761033379506,2.63948301,3894.1,3894.0,0.34656417]
[1761033379702,2.17732301,3894.1,3894.0,1.02433417]
[1761033379909,2.17732301,3894.1,3894.0,1.36843417]
[1761033380410,1.83932301,3894.1,3894.0,1.36843417]
[1761033382310,2.30148301,3894.1,3894.0,1.36843417]
[1761033382808,0.90928261,3894.1,3894.0,1.36843417]
[1761033383808,0.44712261,3894.1,3894.0,1.36843417]
[1761033385901,0.00242261,3894.1,3894.0,1.36843417]
[1761033386406,0.2309,3894.9,3894.8,0.4319]
[1761033386602,2.91639004,3894.9,3894.8,0.5591]
[1761033386817,2.91639004,3894.9,3894.8,0.3435]
[1761033387501,0.7827,3894.7,3894.6,0.5591]
[1761033387700,1.24479,3894.7,3894.6,0.5591]
[1761033388207,0.7827,3894.7,3894.6,1.0212]
[1761033388412,0.7827,3894.7,3894.6,1.2369]
[1761033389113,0.4447,3894.7,3894.6,1.2369]
[1761033391812,0.2309,3894.7,3894.6,1.2369]
[1761033392108,1.89683059,3894.9,3894.8,0.46208]
[1761033392317,1.89683059,3894.9,3894.8,1.22418]
[1761033392710,0.00291055,3894.9,3894.8,1.22418]
[1761033393311,0.77241055,3894.9,3894.8,1.22418]
[1761033393612,2.44403059,3894.9,3894.8,1.22418]
[1761033394911,2.11883059,3894.9,3894.8,1.22418]
[1761033395317,0.00291055,3894.9,3894.8,1.22418]
[1761033399703,0.00291055,3894.9,3894.8,6.22418]
[1761033399905,2.13360004,3895.6,3895.5,0.8984]
[1761033400120,2.96116817,3895.6,3895.5,0.8984]
[1761033400814,1.89648787,3895.6,3895.5,1.3604]
[1761033401716,2.35846787,3895.6,3895.5,1.3604]
[1761033403119,0.00256783,3895.6,3895.5,1.3604]
[1761033420319,0.00256783,3895.6,3895.5,0.8984]
[1761033420320,0.21356783,3895.6,3895.5,0.8984]
[1761033420524,2.44368787,3895.6,3895.5,0.7621]
[1761033420723,2.44368787,3895.6,3895.5,0.8966]
[1761033421133,2.90566787,3895.6,3895.5,0.8966]
[1761033422135,2.90566787,3895.6,3895.5,0.7621]
[1761033422636,2.90566787,3895.6,3895.5,0.5464]
[1761033422831,2.44368787,3895.6,3895.5,0.5464]
[1761033423030,2.90566787,3895.6,3895.5,0.5464]
[1761033423529,2.90566787,3895.6,3895.5,0.332]
[1761033423828,1.23154,3895.1,3894.8,9.50807]
[1761033424029,0.4314,3894.9,3894.8,0.91337]
[1761033424236,0.4314,3894.9,3894.8,1.23067]
[1761033424431,1.23157,3894.9,3894.8,0.3173]
[1761033425028,1.23157,3894.9,3894.8,0.5387]
[1761033426935,1.23157,3894.9,3894.8,0.3173]
[1761033427238,0.89349,3894.7,3894.6,0.3173]
[1761033427837,1.23159,3894.7,3894.6,0.3173]
[1761033428342,1.23159,3894.7,3894.6,0.5387]
[1761033429241,1.23159,3894.7,3894.6,1.0008]
[1761033431137,1.23159,3894.7,3894.6,0.5387]
[1761033431438,0.7695,3894.7,3894.6,1.0008]
[1761033431840,0.7695,3894.7,3894.6,1.2307]
[1761033433746,1.23159,3894.7,3894.6,0.7686]
[1761033433944,1.23159,3894.7,3894.6,1.2307]
[1761033433945,0.7695,3894.7,3894.6,1.2307]
[1761033439141,0.4314,3894.7,3894.6,1.2307]
[1761033439342,0.211,3894.7,3894.6,1.2307]
[1761033439545,1.22456,3895.0,3894.9,0.7611]
[1761033442847,0.4359,3895.0,3894.9,0.7611]
[1761033443245,0.4359,3895.0,3894.9,1.22317]
[1761033443445,0.89795,3895.0,3894.9,0.7611]
[1761033444865,1.82838476,3895.0,3894.9,1.22317]
[1761033445350,1.61938476,3895.0,3894.9,1.22317]
[1761033445651,0.00256783,3895.6,3895.5,0.8912]
[1761033445843,0.69144783,3895.6,3895.5,0.8912]
[1761033446050,1.22704783,3895.6,3895.5,0.8912]
[1761033446948,0.43846783,3895.6,3895.5,1.3532]
[1761033447554,0.43846783,3895.6,3895.5,0.8912]
[1761033447750,0.43846783,3895.6,3895.5,1.3532]
[1761033448054,0.43846783,3895.6,3895.5,0.8912]
[1761033448356,0.90044783,3895.6,3895.5,0.8912]
[1761033448654,0.77116783,3895.6,3895.5,0.8912]
[1761033448857,0.43846783,3895.6,3895.5,1.3532]
[1761033449354,1.23314783,3895.6,3895.5,0.8912]
[1761033450347,1.23314783,3895.6,3895.5,1.3532]
[1761033450551,0.43846783,3895.6,3895.5,1.3532]
[1761033451052,0.22946783,3895.6,3895.5,1.3532]
[1761033451760,1.23454783,3895.6,3895.5,0.8912]
[1761033452254,1.23454783,3895.6,3895.5,1.3532]
[1761033452255,0.77256783,3895.6,3895.5,1.3532]
[1761033452658,0.43986783,3895.6,3895.5,1.3532]
[1761033452960,0.00256783,3895.6,3895.5,1.3532]
[1761033456459,0.00256783,3895.6,3895.5,0.8912]
[1761033456863,0.00256783,3895.6,3895.5,1.3532]
[1761033460659,0.21296783,3895.6,3895.5,1.3532]
[1761033461061,0.75606783,3895.6,3895.5,0.8912]
[1761033461271,1.21804783,3895.6,3895.5,0.5434]
[1761033461559,0.75606783,3895.6,3895.5,0.5434]
[1761033461765,0.75606783,3895.6,3895.5,0.6712]
[1761033461963,0.75606783,3895.6,3895.5,0.8823]
[1761033462265,1.21804783,3895.6,3895.5,0.8823]
[1761033464864,1.21804783,3895.6,3895.5,0.5434]
[1761033465070,1.21804783,3895.6,3895.5,0.3152]
[1761033466860,1.21804783,3895.6,3895.5,0.6635]
[1761033467064,1.21804783,3895.6,3895.5,0.8746]
[1761033469270,0.88534783,3895.6,3895.5,0.8746]
[1761033469473,1.21804783,3895.6,3895.5,0.8746]
[1761033471770,0.46454783,3895.6,3895.5,0.8746]
[1761033471971,0.67494783,3895.6,3895.5,0.8746]
[1761033472471,1.21804783,3895.6,3895.5,0.8746]
[1761033473767,0.46454783,3895.6,3895.5,0.8746]
[1761033474173,1.21804783,3895.6,3895.5,0.6635]
[1761033474565,1.81840441,3895.6,3895.5,0.6635]
[1761033474967,1.21804783,3895.6,3895.5,0.6635]
[1761033475277,1.81854677,3895.6,3895.5,0.8746]
[1761033475772,1.48584677,3895.6,3895.5,0.8746]
[1761033479475,1.82504677,3895.6,3895.5,0.8746]
[1761033480568,0.42336783,3895.6,3895.5,1.3366]
[1761033480761,0.00256783,3895.6,3895.5,0.8746]
[1761033481376,0.67664783,3895.6,3895.5,0.8746]
[1761033482075,0.21466783,3895.6,3895.5,0.8746]
[1761033483668,0.67664783,3895.6,3895.5,0.8746]
[1761033485379,1.23974783,3895.6,3895.5,0.8746]
[1761033489478,1.84074651,3895.6,3895.5,0.8746]
[1761033490771,1.84074651,3895.6,3895.5,0.5357]
[1761033492478,1.84074651,3895.6,3895.5,0.3152]
[1761033492779,1.23723,3895.2,3895.1,1.80653662]
[1761033492975,2.62971476,3895.2,3895.1,0.4363]
[1761033493280,2.62971476,3895.2,3895.1,0.7719]
[1761033494178,0.2121,3894.9,3894.8,1.58133662]
[1761033494382,2.16768476,3894.9,3894.8,0.2111]
[1761033494681,2.62975476,3894.9,3894.8,0.2111]
[1761033494878,2.62975476,3894.9,3894.8,0.5467]
[1761033495484,2.62975476,3894.9,3894.8,0.7719]
[1761033495783,2.29055476,3894.9,3894.8,0.7719]
[1761033496888,0.46205,3895.1,3895.0,0.9013]
[1761033497182,0.68805,3895.1,3895.0,0.9013]
[1761033497386,1.03355,3895.1,3895.0,0.9013]
[1761033497585,1.25525,3895.1,3895.0,0.9013]
[1761033500781,0.7932,3895.1,3895.0,0.9013]
[1761033500985,2.08052476,3895.1,3895.0,0.9013]
[1761033501689,1.61848476,3895.1,3895.0,1.36335]
[1761033504486,2.08052476,3895.1,3895.0,1.36335]
[1761033504687,0.68804,3895.1,3895.0,1.36335]
[1761033505788,1.25524,3895.1,3895.0,0.9013]
[1761033508381,1.25524,3895.1,3895.0,0.325]
[1761033508583,1.85502558,3895.1,3895.0,0.325]
[1761033508784,1.25524,3895.1,3895.0,0.325]
[1761033509380,1.25524,3895.1,3895.0,0.5428]
[1761033509893,1.25524,3895.1,3895.0,0.325]
[1761033512487,0.4477,3895.1,3895.0,0.9029]
[1761033512690,0.7857,3895.1,3895.0,0.9029]
[1761033512890,1.24774,3895.1,3895.0,0.9029]
[1761033519892,1.84791945,3895.1,3895.0,0.5428]
[1761033521401,0.7743,3894.9,3894.8,0.3354]
[1761033521593,1.23637,3894.9,3894.8,0.5532]
[1761033522601,1.23637,3894.9,3894.8,0.7824]
[1761033524804,1.23637,3894.9,3894.8,0.5532]
[1761033525604,1.23637,3894.9,3894.8,0.7824]
[1761033526997,1.23637,3894.9,3894.8,0.3354]
[1761033527197,1.83692712,3894.9,3894.8,0.3354]
[1761033528406,1.23637,3894.9,3894.8,0.5532]
[1761033529605,1.23637,3894.9,3894.8,0.7824]
[1761033532804,0.89837,3894.9,3894.8,0.7824]
[1761033533410,1.15506,3895.3,3894.7,1.37023662]
[1761033533411,1.23638,3894.8,3894.7,0.5532]
[1761033537013,1.23638,3894.8,3894.7,2.15263662]
[1761033537214,0.2139,3894.8,3894.7,2.61472662]
[1761033537711,0.67598,3894.8,3894.7,2.61472662]
[1761033537910,0.67598,3894.8,3894.7,2.15263662]
[1761033539908,1.22168,3894.8,3894.7,2.15263662]
[1761033540911,1.22289,3894.7,3894.6,1.37023662]
[1761033541212,1.22289,3894.7,3893.7,2.29130531]
[1761033541213,1.22296,3894.1,3894.0,0.00306417]
[1761033541511,1.82369753,3894.1,3894.0,0.00306417]
[1761033541714,1.82369753,3894.1,3894.0,0.34156417]
[1761033542015,3.49445956,3894.1,3894.0,0.90316417]
[1761033542219,3.49445956,3894.1,3894.0,0.34156417]
[1761033544920,3.49445956,3894.1,3894.0,0.00306417]
[1761033545209,2.89372203,3894.1,3894.0,0.00306417]
[1761033547809,2.89372203,3894.1,3894.0,0.34156417]
[1761033548914,2.89372203,3894.1,3894.0,0.00306417]
[1761033549610,2.89372203,3894.1,3894.0,0.34156417]
[1761033550412,2.89372203,3894.1,3894.0,0.00306417]
[1761033552212,2.89372203,3894.1,3894.0,0.68796417]
[1761033552609,2.89372203,3894.1,3894.0,0.55816417]
[1761033558520,0.89666,3894.1,3894.0,1.37613417]
[1761033558718,1.21526,3894.1,3894.0,0.91396417]
[1761033559023,1.21526,3894.1,3894.0,0.55816417]
[1761033559519,0.4345,3894.1,3894.0,0.91396417]
[1761033559707,0.4345,3894.1,3894.0,1.37613417]
[1761033559911,0.67726,3894.1,3894.0,1.37613417]
[1761033560312,0.67726,3894.1,3894.0,0.91396417]
[1761033560823,0.7765,3894.4,3894.3,0.7935]
[1761033561007,1.23863,3894.4,3894.3,0.7935]
[1761033562122,0.4579,3894.1,3894.0,1.38613417]
[1761033563711,1.67076203,3894.3,3894.1,0.80406]
[1761033563917,2.35950203,3894.3,3894.2,0.7935]
[1761033564514,2.90940203,3894.3,3894.2,0.7935]
[1761033565724,2.12866203,3894.3,3894.2,1.25565]
[1761033566318,2.44726203,3894.3,3894.2,1.25565]
[1761033566519,2.59080203,3894.3,3894.2,0.7935]
[1761033566817,2.63158068,3894.3,3894.2,0.7935]
[1761033569121,2.31298068,3894.3,3894.2,0.7935]
[1761033569322,3.24788183,3894.3,3894.2,0.7935]
[1761033573229,2.64548068,3894.3,3894.2,0.7935]
[1761033578139,2.64548068,3894.3,3894.2,1.25565]
[1761033578327,0.7781,3894.6,3894.5,1.02961]
[1761033578632,1.842513,3894.6,3894.5,0.5675]
[1761033578828,1.842513,3894.6,3894.5,0.3182]
[1761033579025,0.7781,3894.4,3894.3,0.3182]
[1761033579336,2.17104068,3894.4,3894.3,0.3182]
[1761033579531,2.63317068,3894.4,3894.3,0.3182]
[1761033580938,2.17104068,3894.4,3894.3,0.99074]
[1761033581944,2.17104068,3894.4,3894.3,1.20964]
[1761033585149,2.63317068,3894.4,3894.3,0.7475]
[1761033586546,2.63317068,3894.4,3894.3,1.20964]
[1761033587144,2.17104068,3894.4,3894.3,1.20964]
[1761033587349,1.83854068,3894.4,3894.3,1.20964]
[1761033590646,0.3325,3894.7,3894.5,0.1382]
[1761033590647,2.17104068,3894.7,3894.5,0.1382]
[1761033590847,2.63306068,3895.3,3895.2,0.3182]
[1761033591042,0.0663,3894.5,3894.4,1.37023662]
[1761033591348,0.7781,3894.2,3894.1,0.2104]
[1761033591552,2.17104068,3894.2,3894.1,0.2104]
[1761033591756,2.17104068,3894.2,3894.1,0.5286]
[1761033592552,2.17104068,3894.2,3894.1,0.99076]
[1761033594248,0.3325,3894.1,3894.0,0.00306417]
[1761033594449,1.24026,3894.1,3894.0,0.32126417]
[1761033594756,0.7781,3894.1,3894.0,0.53166417]
[1761033595143,0.7781,3894.1,3894.0,0.32126417]
[1761033595555,0.7781,3894.1,3894.0,0.00306417]
[1761033595948,0.7781,3894.1,3894.0,0.32126417]
[1761033598454,2.17104068,3894.1,3894.0,0.00306417]
[1761033598658,2.77271517,3894.1,3894.0,0.00306417]
[1761033600159,2.17104068,3894.1,3894.0,0.00306417]
[1761033600350,0.7781,3894.1,3894.0,0.00306417]
[1761033600551,0.7781,3894.1,3894.0,0.34546417]
[1761033600858,0.7781,3894.1,3894.0,0.00306417]
[1761033601062,1.3796767,3894.1,3894.0,0.00306417]
[1761033601358,1.3796767,3894.1,3894.0,0.34546417]
[1761033601858,1.3796767,3894.1,3894.0,0.00306417]
[1761033605164,1.22536,3893.3,3893.2,0.3424]
[1761033606160,1.22536,3893.3,3893.2,0.34530045]
[1761033607059,1.22536,3893.3,3893.2,0.00290045]
[1761033607471,1.22536,3893.3,3893.2,0.55980045]
[1761033607673,1.22536,3893.3,3893.2,0.78290045]
[1761033608163,0.2151,3893.3,3893.2,0.78290045]
[1761033608363,1.22532,3893.6,3893.5,0.9131]
[1761033608857,1.22532,3893.6,3893.5,0.3424]
[1761033609164,1.22536,3893.3,3893.2,0.00290045]
[1761033614870,1.22536,3893.3,3893.2,0.34530045]
[1761033617974,1.22536,3893.3,3893.2,0.00290045]
[1761033623971,1.22536,3893.3,3892.5,0.3505]
[1761033623972,1.23774,3892.6,3892.5,0.3505]
[1761033624169,1.23774,3892.6,3892.5,0.2123]
[1761033624477,1.23774,3892.6,3892.5,0.5445]
[1761033624978,1.24085734,3892.6,3892.5,0.54705537]
[1761033625274,1.24085734,3892.6,3892.5,0.67365537]
[1761033625580,1.24085734,3892.6,3892.5,0.89295537]
[1761033630777,0.00311734,3892.6,3892.5,5.89295537]
[1761033630983,0.00311734,3892.6,3892.5,6.35530537]
[1761033631778,1.69634588,3893.9,3893.5,0.46223]
[1761033632085,1.23528,3893.9,3893.8,0.7999]
[1761033632384,1.83513075,3893.9,3893.8,0.7999]
[1761033632884,1.83737131,3893.9,3893.8,0.7999]
[1761033633084,1.83737131,3893.9,3893.8,0.3397]
[1761033633388,0.80192,3893.6,3893.5,0.3632]
[1761033633583,1.23532,3893.6,3893.5,0.2293]
[1761033633779,1.83533098,3893.6,3893.5,0.2293]
[1761033634084,1.83533098,3893.6,3893.5,0.3397]
[1761033634475,1.23532,3893.6,3893.5,0.3397]
[1761033637491,1.8353319,3893.6,3893.5,0.3397]
[1761033637988,1.23532,3893.6,3893.5,0.3397]
[1761033639088,1.23532,3893.6,3893.5,0.569]
[1761033639497,0.4334,3893.6,3893.5,0.9338]